Workbook

Sheet Compressor & IHX
A1: Table Parameters | K1: COMPRESOR PARAMETERS - SCROLL COMPRESOR YF15KE-TFD
A2: Refrigerant | B2: =M3 -> R454C
A3: Drive | B3: =M9 -> 380-420 V / 3~ / 50 Hz | K3: YF15K1E-TFD | M3: R454C
A4: Table Suction Temperature [oC] | B4: =M10 -> 20 | K4: Version | L4: 8.24.5.4610 / 45322
A5: Table Subcooling [K] | B5: =M7 -> 0
A7: n [RPM] | B7: 3000 | K7: Liquid Subcooling | M7: 0 | N7: K
A8: Compressor | B8: =K3 -> YF15K1E-TFD | K8: Voltage | M8: 400 | N8: V
A9: V_dot [m^3.h^-1] | B9: 3.96 | C9: => | K9: Power Supply | M9: 380-420 V / 3~ / 50 Hz | X9: Cooling Capacity, kW | Z9: Power, kW
K10: Suction Return Temperature | M10: 20 | N10: °C | W10: C0 | X10: 19.8316738 | Z10: 2.362283463
A11: Table Cooling Capacity [kW] | B11: SDT\SST [°C] | C11: =C25 -> -10 | D11: =D25 -> -5 | E11: 0 | F11: 5 | G11: 13 | K11: Swept Volume | M11: 98 | N11: cm³ | W11: C1 | X11: 0.6878474523 | Z11: 0.03777945974
B12: 25 | C12: =($L$16+$M$16*C$11+$N$16*$B12+$O$16*C$11^2+$P$16*C$11*$B12+$Q$16*$B12^2+$R$16*C$11^3+$S$16*$B12*C$11^2+$T$16*C$11*$B12^2+$U$16*$B12^3)*$B$7/3000 -> 10.78231442 | D12: 13.00495147 | E12: 15.55424981 | F12: 18.45537228 | G12: 23.89176882 | K12: Dew Point | W12: C2 | X12: -0.177020842 | Z12: -0.009768598992
B13: 32 | C13: 9.98567944 | D13: 12.03836546 | E13: 14.39786379 | F13: 17.08933728 | G13: 22.14900958 | W13: C3 | X13: 0.00845426656 | Z13: 0
B14: 39 | C14: 9.199620927 | D14: 11.08295848 | E14: 13.25325938 | F14: 15.73568644 | G14: 20.4195986 | W14: C4 | X14: -0.005776508386 | Z14: -0.001772744988
B15: 46 | C15: 8.420755221 | D15: 10.13534688 | E15: 12.1170529 | F15: 14.39103611 | G15: 18.70015223 | L15: C0 | M15: C1 | N15: C2 | O15: C3 | P15: C4 | Q15: C5 | R15: C6 | S15: C7 | T15: C8 | U15: C9 | W15: C5 | X15: 0.000278059121 | Z15: 8.6099237e-05
B16: 55 | C16: 7.424480042 | D16: 8.922998085 | E16: 10.66311038 | F16: 12.66997976 | G16: 16.4986319 | K16: Cooling Capacity, kW | L16: 19.8316738 | M16: 0.6878474523 | N16: -0.177020842 | O16: 0.00845426656 | P16: -0.005776508386 | Q16: 0.000278059121 | R16: 3.3550436e-05 | S16: -5.6711363e-05 | T16: 1.229724e-06 | U16: -1.644153e-06 | W16: C6 | X16: 3.3550436e-05 | Z16: 0
W17: C7 | X17: -5.6711363e-05 | Z17: 0
A18: Table Input Power [kW] | B18: SDT\SST [°C] | C18: =C11 -> -10 | D18: =D11 -> -5 | E18: 0 | F18: 5 | G18: 13 | K18: Power, kW | L18: 2.362283463 | M18: 0.03777945974 | N18: -0.009768598992 | O18: 0 | P18: -0.001772744988 | Q18: 8.6099237e-05 | R18: 0 | S18: 0 | T18: 3.528019e-05 | U18: 1.8122378e-05 | W18: C8 | X18: 1.229724e-06 | Z18: 3.528019e-05
B19: =B12 -> 25 | C19: =($L$18+$M$18*C$18+$N$18*$B19+$O$18*C$18^2+$P$18*C$18*$B19+$Q$18*$B19^2+$R$18*C$18^3+$S$18*$B19*C$18^2+$T$18*C$18*$B19^2+$U$18*$B19^3)*$B$7/3000 -> 2.299933129 | D19: 2.377487898 | E19: 2.455042667 | F19: 2.532597436 | G19: 2.656685066 | W19: C9 | X19: -1.644153e-06 | Z19: 1.8122378e-05
B20: =B13 -> 32 | C20: 2.559902649 | D20: 2.645795322 | E20: 2.731687996 | F20: 2.817580669 | G20: 2.955008947 | K20: Current, A | L20: 6.020535983 | M20: 0.03052703176 | N20: 0.009519925116 | O20: -1.5950868e-05 | P20: -0.002093537543 | Q20: -0.001365680825 | R20: -1.021667e-06 | S20: 2.916723e-06 | T20: 4.8226599e-05 | U20: 3.8294531e-05
B21: 39 | C21: 2.96423064 | D21: 3.075748511 | E21: 3.187266382 | F21: 3.298784253 | G21: 3.477212846
B22: 46 | C22: 3.550212956 | D22: 3.704643318 | E22: 3.859073679 | F22: 4.013504041 | G22: 4.26059262 | K22: Suction Mass Flow, g/s | L22: 90.75500689 | M22: 3.323221247 | N22: -0.2491731567 | O22: 0.04772479999 | P22: -0.007846729109 | Q22: 0.000628174543 | R22: 0.000291232597 | S22: -4.4653476e-05 | T22: 2.7533764e-05 | U22: 7.900792e-06 | X22: Cooling Capacity, kW | Y22: Power, kW
B23: 55 | C23: 4.630560748 | D23: 4.865566049 | E23: 5.10057135 | F23: 5.33557665 | G23: 5.711585132 | W23: C0 | X23: 19.8316738 | Y23: 2.362283463
L24: X = C0 + C1*S + C2*D + C3*S^2 + C4*S*D + C5*D^2 + C6*S^3 + C7*D*S^2 +C8*S*D^2 + C9*D^3 | W24: C1 | X24: 0.6878474523 | Y24: 0.03777945974
A25: Table Suction Massflow [kg * s^-1] | B25: SDT\SST [oC] | C25: -10 | D25: -5 | E25: 0 | F25: 5 | G25: 13 | W25: C2 | X25: -0.177020842 | Y25: -0.009768598992
B26: =B12 -> 25 | C26: =($L$22+$M$22*C$11+$N$22*$B12+$O$22*C$11^2+$P$22*C$11*$B12+$Q$22*$B12^2+$R$22*C$11^3+$S$22*$B12*C$11^2+$T$22*C$11*$B12^2+$U$22*$B12^3)/1000*$B$7/3000 -> 0.05796873443 | D26: =($L$22+$M$22*D$11+$N$22*$B12+$O$22*D$11^2+$P$22*D$11*$B12+$Q$22*$B12^2+$R$22*D$11^3+$S$22*$B12*D$11^2+$T$22*D$11*$B12^2+$U$22*$B12^3)/1000*$B$7/3000 -> 0.07044923633 | E26: 0.08504173693 | F26: 0.1019646607 | G26: 0.1344338063 | L26: X = Cooling Capacity, kW; Power Input, kW; Current, A; Suction Mass Flow, g/s | W26: C3 | X26: 0.00845426656 | Y26: 0
B27: =B13 -> 32 | C27: =($L$22+$M$22*C$11+$N$22*$B13+$O$22*C$11^2+$P$22*C$11*$B13+$Q$22*$B13^2+$R$22*C$11^3+$S$22*$B13*C$11^2+$T$22*C$11*$B13^2+$U$22*$B13^3)/1000*$B$7/3000 -> 0.05701876114 | D27: 0.06930300045 | E27: 0.08368360976 | F27: 0.1003790135 | G27: 0.1324516193 | L27: S = Evaporating Temperature, °C | W27: C4 | X27: -0.005776508386 | Y27: -0.001772744988
B28: 39 | C28: =($L$22+$M$22*C$11+$N$22*$B14+$O$22*C$11^2+$P$22*C$11*$B14+$Q$22*$B14^2+$R$22*C$11^3+$S$22*$B14*C$11^2+$T$22*C$11*$B14^2+$U$22*$B14^3)/1000*$B$7/3000 -> 0.05617769652 | D28: 0.06827916479 | E28: 0.08246137434 | F28: 0.0989427496 | G28: 0.1306404022 | L28: D = Cond. Temp., °C | W28: C5 | X28: 0.000278059121 | Y28: 8.6099237e-05
B29: 46 | C29: =($L$22+$M$22*C$11+$N$22*$B15+$O$22*C$11^2+$P$22*C$11*$B15+$Q$22*$B15^2+$R$22*C$11^3+$S$22*$B15*C$11^2+$T$22*C$11*$B15^2+$U$22*$B15^3)/1000*$B$7/3000 -> 0.05546180039 | D29: 0.06739398917 | E29: 0.0813912905 | F29: 0.09767212884 | G29: 0.1290164146 | W29: C6 | X29: 3.3550436e-05 | Y29: 0
B30: 55 | C30: =($L$22+$M$22*C$11+$N$22*$B16+$O$22*C$11^2+$P$22*C$11*$B16+$Q$22*$B16^2+$R$22*C$11^3+$S$22*$B16*C$11^2+$T$22*C$11*$B16^2+$U$22*$B16^3)/1000*$B$7/3000 -> 0.054751451 | D30: 0.06648581902 | E30: 0.08026520553 | F30: 0.09630803498 | G30: 0.1272297108 | K30: WARNING - Data from coefficients valid only within operating range | W30: C7 | X30: -5.6711363e-05 | Y30: 0
K31: WARNING - Cooling capacity is valid only for the given Liquid Subcooling and Return Gas Temperature or Suction Superheat | W31: C8 | X31: 1.229724e-06 | Y31: 3.528019e-05
W32: C9 | X32: -1.644153e-06 | Y32: 1.8122378e-05
A33: Calculated Parameters
A34: Chosen Saturated Suction Temperature [oC] | B34: -9
A36: Chosen Suction Temperature [°C] | B36: 9
A37: Suction Temperatures Ratio | B37: =(B4+273.15)/(B36+273.15) -> 1.038986355
A39: Evaporator Superheating [K] | B39: 7
A41: Chosen Subcooling [K] | B41: 0
A43: dh_sbcl [kJ * kg^-1] | B43: SDT\SST | C43: =$C$25 -> -10 | D43: =$D$25 -> -5 | E43: =$E$25 -> 0 | F43: =$F$25 -> 5 | G43: =$G$25 -> 13 | J43: =C43 -> -10
B44: =$B$26 -> 25 | C44: 0 | D44: 0 | E44: 0 | F44: 0 | G44: 0 | I44: =B44 -> 25 | J44: =[1]!enthalpy($B$2,"tliq","c",$B44)-[1]!enthalpy($B$2,"tliq","c",$B44-$B$41) -> 0
B45: =$B$27 -> 32 | C45: 0 | D45: 0 | E45: 0 | F45: 0 | G45: 0
B46: =$B$28 -> 39 | C46: 0 | D46: 0 | E46: 0 | F46: 0 | G46: 0
B47: =$B$29 -> 46 | C47: 0 | D47: 0 | E47: 0 | F47: 0 | G47: 0
B48: =$B$30 -> 55 | C48: 0 | D48: 0 | E48: 0 | F48: 0 | G48: 0
A50: Internal HX | B50: NO
A51: Type | B51: KAPALINA-PARA
A52: Coefficients | B52: C0 | C52: C1
B53: 3.14 | C53: 3.1
A57: U . A [kW * K^-1] | B57: SDT\SST | C57: =$C$25 -> -10 | D57: =$D$25 -> -5 | E57: =$E$25 -> 0 | F57: =$F$25 -> 5 | G57: =$G$25 -> 13
B58: =$B$26 -> 25 | C58: =$B$53+$C$53*($B$37*C26) -> 3.326709045 | D58: 3.366906965 | E58: 3.413907333 | F58: 3.468413663 | G58: 3.57299216
B59: =$B$27 -> 32 | C59: 3.323649316 | D59: 3.363215103 | E59: 3.409532999 | F59: 3.463306519 | G59: 3.566607818
B60: =$B$28 -> 39 | C60: 3.320940366 | D60: 3.359917474 | E60: 3.405596352 | F60: 3.458680517 | G60: 3.560774145
B61: =$B$29 -> 46 | C61: 3.318634567 | D61: 3.357066449 | E61: 3.402149765 | F61: 3.454588028 | G61: 3.555543512
B62: =$B$30 -> 55 | C62: 3.316346633 | D62: 3.354141362 | E62: 3.398522805 | F62: 3.450194476 | G62: 3.549788794
A64: cp_vap [kJ * kg^-1] | B64: SDT\SST | C64: =C57 -> -10 | D64: =$D$25 -> -5 | E64: =$E$25 -> 0 | F64: =$F$25 -> 5 | G64: =$G$25 -> 13 | J64: =C64 -> -10
B65: =$B$26 -> 25 | C65: 1.058330249 | D65: 1.095871115 | E65: 1.111875633 | F65: 1.137119429 | G65: 1.159433082 | I65: =B65 -> 25 | J65: =[1]!cp($B$2,"pt","c",[1]!pressure($B$2,"tvap","c",C$64),C$64+$B$39) -> 0.9205400437
B66: =$B$27 -> 32 | C66: 1.058330249 | D66: 1.095871115 | E66: 1.111875633 | F66: 1.137119429 | G66: 1.159433082
B67: =$B$28 -> 39 | C67: 1.058330249 | D67: 1.095871115 | E67: 1.111875633 | F67: 1.137119429 | G67: 1.159433082
B68: =$B$29 -> 46 | C68: 1.058330249 | D68: 1.095871115 | E68: 1.111875633 | F68: 1.137119429 | G68: 1.159433082
B69: =$B$30 -> 55 | C69: 1.058330249 | D69: 1.095871115 | E69: 1.111875633 | F69: 1.137119429 | G69: 1.159433082
A71: cp_liq [kJ * kg^-1] | B71: SDT\SST | C71: =$C$25 -> -10 | D71: =$D$25 -> -5 | E71: =$E$25 -> 0 | F71: =$F$25 -> 5 | G71: =$G$25 -> 13 | J71: =C71 -> -10
B72: =$B$26 -> 25 | C72: 1.708197917 | D72: 1.708197917 | E72: 1.708197917 | F72: 1.708197917 | G72: 1.708197917 | I72: =B72 -> 25 | J72: =[1]!cp($B$2,"tliq","c",$B72) -> 1.539285384
B73: =$B$27 -> 32 | C73: 1.768694111 | D73: 1.768694111 | E73: 1.768694111 | F73: 1.768694111 | G73: 1.768694111
B74: =$B$28 -> 39 | C74: 1.843334083 | D74: 1.843334083 | E74: 1.843334083 | F74: 1.843334083 | G74: 1.843334083
B75: =$B$29 -> 46 | C75: 1.938924502 | D75: 1.938924502 | E75: 1.938924502 | F75: 1.938924502 | G75: 1.938924502
B76: =$B$30 -> 55 | C76: 2.068018538 | D76: 2.068018538 | E76: 2.068018538 | F76: 2.068018538 | G76: 2.068018538
A78: Cmin [kW * K^-1] | B78: SDT\SST | C78: =C11 -> -10 | D78: =D11 -> -5 | E78: 0 | F78: 5 | G78: 13
B79: =$B$26 -> 25 | C79: =C65*($B$37*C26) -> 0.06374188054 | D79: 0.08021315774 | E79: 0.09824222246 | F79: 0.1204663085 | G79: 0.1619436885
B80: =$B$27 -> 32 | C80: 0.06269729876 | D80: 0.07890805915 | E80: 0.09667328187 | F80: 0.1185929431 | G80: 0.1595558765
B81: =$B$28 -> 39 | C81: 0.06177247193 | D81: 0.07774232484 | E81: 0.09526132666 | F81: 0.1168960669 | G81: 0.1573740206
B82: =$B$29 -> 46 | C82: 0.06098527922 | D82: 0.07673446818 | E82: 0.09402514055 | F82: 0.11539489 | G82: 0.1554177081
B83: =$B$30 -> 55 | C83: 0.06020418564 | D83: 0.07570043007 | E83: 0.0927242606 | F83: 0.1137832792 | G83: 0.1532653819
A85: Cmax [kW * K^-1] | B85: SDT\SST | C85: =C78 -> -10 | D85: =D78 -> -5 | E85: 0 | F85: 5 | G85: 13
B86: =$B$26 -> 25 | C86: =C72*($B$37*C26) -> 0.102882581 | D86: 0.125032905 | E86: 0.1509315923 | F86: 0.1809663014 | G86: 0.2385923568
B87: =$B$27 -> 32 | C87: 0.1047804721 | D87: 0.1273545928 | E87: 0.1537811058 | F87: 0.1844613986 | G87: 0.2433995921
B88: =$B$28 -> 39 | C88: 0.1075914659 | D88: 0.1307681854 | E88: 0.1579299383 | F88: 0.1894950511 | G88: 0.2502023623
B89: =$B$29 -> 46 | C89: 0.1117286899 | D89: 0.1357662763 | E89: 0.1639640652 | F89: 0.1967620762 | G89: 0.2599056444
B90: =$B$30 -> 55 | C90: 0.1176413243 | D90: 0.1428542925 | E90: 0.1724612754 | F90: 0.2069315893 | G90: 0.273371233
A92: NTU | B92: SDT\SST | C92: =C85 -> -10 | D92: =D85 -> -5 | E92: 0 | F92: 5 | G92: 13
B93: =$B$26 -> 25 | C93: =C58/C79 -> 52.19031846 | D93: 41.97449721 | E93: 34.74989926 | F93: 28.79156592 | G93: 22.06317636
B94: =$B$27 -> 32 | C94: 53.01104484 | D94: 42.62194685 | E94: 35.26861748 | F94: 29.20331031 | G94: 22.35334666
B95: =$B$28 -> 39 | C95: 53.76084625 | D95: 43.21863902 | E95: 35.7500412 | F95: 29.58765516 | G95: 22.6261878
B96: =$B$29 -> 46 | C96: 54.41697749 | D96: 43.74913293 | E96: 36.18340526 | F96: 29.93709711 | G96: 22.87733848
B97: =$B$30 -> 55 | C97: 55.08498449 | D97: 44.30808859 | E97: 36.65192673 | F97: 30.32250873 | G97: 23.16106057
A99: eff | B99: SDT\SST | C99: =C92 -> -10 | D99: =D92 -> -5 | E99: 0 | F99: 5 | G99: 13
B100: =$B$26 -> 25 | C100: =1-EXP((C86/C79)*C93^0.22*(EXP((-C86/C79)*C93^0.78)-1)) -> 0.9787817028 | D100: 0.9711830163 | E100: 0.9650364569 | F100: 0.9569797839 | G100: 0.9455266238
B101: =$B$27 -> 32 | C101: 0.9817403249 | D101: 0.9748975182 | E101: 0.9693017428 | F101: 0.9619059228 | G101: 0.951285417
B102: =$B$28 -> 39 | C102: 0.9847763158 | D102: 0.9787638982 | E102: 0.973784448 | F102: 0.9671369272 | G102: 0.9574771851
B103: =$B$29 -> 46 | C103: 0.987889522 | D103: 0.9827974814 | E103: 0.9785150516 | F103: 0.9727257228 | G103: 0.9641904763
B104: =$B$30 -> 55 | C104: 0.9910866168 | D104: 0.9870325702 | E104: 0.9835545678 | F104: 0.9787722721 | G104: 0.9715857847
A106: Internal HX Capacity [kW] | B106: SDT\SST | C106: =C99 -> -10 | D106: =D99 -> -5 | E106: 0 | F106: 5 | G106: 13
B107: =$B$26 -> 25 | C107: =C100*C79*($B107-(C$106+$B$39)) -> 1.746902819 | D107: 1.791738099 | E107: 1.706531873 | F107: 1.498689684 | G107: 0.7656103454
B108: =$B$27 -> 32 | C108: 2.154336326 | D108: 2.307818131 | E108: 2.342639515 | F108: 2.281505088 | G108: 1.821398142
B109: =$B$28 -> 39 | C109: 2.554946828 | D109: 2.815381094 | E109: 2.968447949 | F109: 3.05247158 | G109: 2.86295865
B110: =$B$29 -> 46 | C110: 2.952089199 | D110: 3.318235451 | E110: 3.588195595 | F110: 3.816417645 | G110: 3.896159123
B111: =$B$30 -> 55 | C111: 3.460718634 | D111: 3.960095873 | E111: 4.377569763 | F111: 4.788820503 | G111: 5.211866323
A113: HX Vapor Outlet Temperature [oC] | B113: SDT\SST | C113: =C106 -> -10 | D113: =D106 -> -5 | E113: 0 | F113: 5 | G113: 13
B114: =$B$26 -> 25 | C114: =(C$113+$B$39)+C107/C79 -> 24.40588768 | D114: 24.33720938 | E114: 24.37065623 | F114: 24.44073719 | G114: 24.72763312
B115: =$B$27 -> 32 | C115: 31.36091137 | D115: 31.24692555 | E115: 31.23254357 | F115: 31.23811846 | G115: 31.415425
B116: =$B$28 -> 39 | C116: 38.36060527 | D116: 38.21426423 | E116: 38.16110233 | F116: 38.11269704 | G116: 38.19206652
B117: =$B$29 -> 46 | C117: 45.40658658 | D117: 45.24308918 | E117: 45.16208701 | F117: 45.07267457 | G117: 45.06895238
B118: =$B$30 -> 55 | C118: 54.48302377 | D118: 54.31272622 | E118: 54.21061925 | F118: 54.0872077 | G118: 54.00550246
A120: HX Liquid Outlet Temperature [oC] | B120: SDT\SST | C120: =C113 -> -10 | D120: =D113 -> -5 | E120: 0 | F120: 5 | G120: 13
B121: =$B$26 -> 25 | C121: =$B121-C107/C86 -> 8.020421909 | D121: =$B121-D107/D86 -> 10.66986747 | E121: 13.69334215 | F121: 16.71840462 | G121: 21.79113633
B122: =$B$27 -> 32 | C122: 11.43952454 | D122: 13.87879934 | E122: 16.7664022 | F122: 19.63153101 | G122: 24.5168398
B123: =$B$28 -> 39 | C123: 15.25325758 | D123: 17.47044305 | E123: 20.20402009 | F123: 22.89154988 | G123: 27.55742758
B124: =$B$29 -> 46 | C124: 19.5780559 | D124: 21.55920703 | E124: 24.11596346 | F124: 26.60389624 | G124: 31.0093324
B125: =$B$30 -> 55 | C125: 25.58245769 | D125: 27.27877578 | E125: 29.61708577 | F125: 31.8579533 | G125: 35.93483991
A127: Cooling Capacity [kW] | B127: SDT\SST [oC] | C127: =C120 -> -10 | D127: =D120 -> -5 | E127: 0 | F127: 5 | G127: 13
B128: =$B$26 -> 25 | C128: =C12*$B$37+IF($B$50="YES",C107,0)+C26*$B$37*C44 -> 11.20267756 | D128: 13.51196712 | E128: 16.16065332 | F128: 19.17487997 | G128: 24.8232218
B129: =$B$27 -> 32 | C129: 10.37498468 | D129: 12.50769744 | E129: 14.95918402 | F129: 17.75558825 | G129: 23.01251872
B130: =$B$28 -> 39 | C130: 9.558280613 | D130: 11.51504263 | E130: 13.76995565 | F130: 16.3491635 | G130: 21.21568432
B131: =$B$29 -> 46 | C131: 8.749049772 | D131: 10.5304871 | E131: 12.58945262 | F131: 14.95209015 | G131: 19.429203
B132: =$B$30 -> 55 | C132: 7.713933455 | D132: 9.270873254 | E132: 11.07882619 | F132: 13.16393608 | G132: 17.14185342
A134: Input Power [kW] | B134: SDT\SST | C134: =C127 -> -10 | D134: =D127 -> -5 | E134: 0 | F134: 5 | G134: 13
B135: =$B$26 -> 25 | C135: =C19/$B$37 -> 2.213631699 | D135: 2.288276345 | E135: 2.362920991 | F135: 2.437565637 | G135: 2.556997071
B136: =$B$27 -> 32 | C136: 2.463846264 | D136: 2.546515948 | E136: 2.629185632 | F136: 2.711855316 | G136: 2.84412681
B137: =$B$28 -> 39 | C137: 2.853002473 | D137: 2.960335809 | E137: 3.067669144 | F137: 3.17500248 | G137: 3.346735817
B138: =$B$29 -> 46 | C138: 3.41699671 | D138: 3.565632311 | E138: 3.714267913 | F138: 3.862903514 | G138: 4.100720476
B139: =$B$30 -> 55 | C139: 4.456806124 | D139: 4.682993214 | E139: 4.909180305 | F139: 5.135367395 | G139: 5.49726674
A141: Heat Rejection [kW] | B141: SDT\SST | C141: =C134 -> -10 | D141: =D134 -> -5 | E141: 0 | F141: 5 | G141: 13
B142: =$B$26 -> 25 | C142: =C128+C135 -> 13.41630926 | D142: =D128+D135 -> 15.80024347 | E142: 18.52357431 | F142: 21.61244561 | G142: 27.38021887
B143: =$B$27 -> 32 | C143: =C129+C136 -> 12.83883095 | D143: 15.05421339 | E143: 17.58836965 | F143: 20.46744356 | G143: 25.85664553
B144: =$B$28 -> 39 | C144: 12.41128309 | D144: 14.47537844 | E144: 16.83762479 | F144: 19.52416598 | G144: 24.56242013
B145: =$B$29 -> 46 | C145: 12.16604648 | D145: 14.09611942 | E145: 16.30372053 | F145: 18.81499366 | G145: 23.52992348
B146: =$B$30 -> 55 | C146: 12.17073958 | D146: 13.95386647 | E146: 15.98800649 | F146: 18.29930348 | G146: 22.63912016

Sheet Condenser
A1: Table or SW Parameters | B1: Table or SW Cooling Fluid Temperature [oC] | C1: 35
B3: t_cnd [oC] | C3: Q_cnd [kW]
B4: =C1 -> 35 | C4: 0
B5: 42 | C5: =(B5-$C$1)*$B$13*2/1000 -> 8.6548
B6: 46 | C6: =(B6-$C$1)*$B$13*2/1000 -> 13.6004
B7: 55 | C7: 24.728
A9: Condenser Characteristics
A10: Considered Cooling Fluid Temperature [oC] | B10: 35
A12: Konstanty výkonu Q_evp=eps1*c1min*(t-t_evp)
A13: eps*c1min | B13: 618.2

Sheet Evaporators
A1: Table or SW Parameters | B1: Table or SW Cooled Fluid Temperature [oC] | C1: 1 | E1: 7 | H1: 13
B2: 1st Evaporator | E2: 2nd Evaporator | H2: 3rd Evaporator
B3: t_evp [oC] | C3: Q_evp 1 [kW] | E3: t_evp [oC] | F3: Q_evp 1 [kW] | H3: t_evp [oC] | I3: Q_evp 3 [kW]
B4: =C1 -> 1 | C4: 0 | E4: =E1 -> 7 | F4: 0 | H4: =H1 -> 13 | I4: 0
B5: -5 | C5: =($C$1-B5)*$B$29*2/1000 -> 1.6764 | E5: 3 | F5: =($E$1-E5)*$B$30*2/1000 -> 0.8308 | H5: 7 | I5: =($H$1-H5)*$B$31*2/1000 -> 0.92688
B6: -9 | C6: =($C$1-B6)*$B$29*2/1000 -> 2.794 | E6: 0 | F6: =($E$1-E6)*$B$30*2/1000 -> 1.4539 | H6: 3 | I6: =($H$1-H6)*$B$31*2/1000 -> 1.5448
B7: -15 | C7: =($C$1-B7)*$B$29*2/1000 -> 4.4704 | E7: -3 | F7: =($E$1-E7)*$B$30*2/1000 -> 2.077 | H7: 0 | I7: =($H$1-H7)*$B$31*2/1000 -> 2.00824
B9: 1 | C9: 0 | E9: =E6 -> 0 | F9: 0 | H9: =H6 -> 3 | I9: 0
B10: -5 | C10: =$B$29*($B$4-B10)*2/1000 -> 1.6764 | E10: 3 | F10: =$B$30*($E$4-E10)*2/1000 -> 0.8308 | H10: 7 | I10: =$B$31*($H$4-H10)*2/1000 -> 0.92688
B11: -9 | C11: =$B$29*($B$4-B11)*2/1000 -> 2.794 | E11: 0 | F11: =$B$30*($E$4-E11)*2/1000 -> 1.4539 | H11: 3 | I11: =$B$31*($H$4-H11)*2/1000 -> 1.5448
B12: -15 | C12: 4.4704 | E12: -3 | F12: 2.077 | H12: 0 | I12: 2.00824
A15: Evaporators Characteristics
A16: 1. Evaporator
A17: ON / OFF | B17: ON
A18: Considered Cooling Fluid Temperature [oC] | B18: 1
A19: 2. Evaporator
A20: ON / OFF | B20: ON
A21: Considered Cooling Fluid Temperature [oC] | B21: 7
A22: 3. Evaporator
A23: ON / OFF | B23: ON
A24: Considered Cooling Fluid Temperature [oC] | B24: 13
A28: Konstanty výkonu Q_evp=eps1*c1min*(t-t_evp)
A29: eps1*c1min | B29: 139.7 | C29: =B29*(1+9) -> 1397
A30: eps2*c2min | B30: 103.85 | C30: =B30*16 -> 1661.6
A31: eps3*c3min | B31: 77.24 | C31: =B31*22 -> 1699.28

Sheet Calculations CndU-Evps
A1: Cnd Unit
A2: Compressor
B3: SDT | C3: SDT^2
B4: ='Compressor & IHX'!B128 -> 25 | C4: =B4^2 -> 625
B5: ='Compressor & IHX'!B129 -> 32 | C5: =B5^2 -> 1024
B6: ='Compressor & IHX'!B130 -> 39 | C6: 1521
B7: ='Compressor & IHX'!B131 -> 46 | C7: 2116
B8: ='Compressor & IHX'!B132 -> 55 | C8: 3025
A10: Compressor Cooling Capacity Characteristic Equation Coefficients | B10: SST | C10: A2 | D10: A1 | E10: A0
A11: SST | B11: ='Compressor & IHX'!C127 -> -10 | C11: =LINEST('Compressor & IHX'!C128:C132,B4:C8,1,0) -> 7.108717243e-05 | D11: -0.1219252365 | E11: 14.20547844
B12: ='Compressor & IHX'!D127 -> -5 | C12: =LINEST('Compressor & IHX'!D128:D132,B4:C8,1,0) -> 7.747550471e-05 | D12: -0.1475146285 | E12: 17.15051009
B13: ='Compressor & IHX'!E127 -> 0 | C13: =LINEST('Compressor & IHX'!E128:E132,B4:C8,1,0) -> 8.386383699e-05 | D13: -0.1760501372 | E13: 20.50859129
B14: ='Compressor & IHX'!F127 -> 5 | C14: =LINEST('Compressor & IHX'!F128:F132,B4:C8,1,0) -> 9.025216927e-05 | D14: -0.2075317625 | E14: 24.30586588
B15: 13 | C15: =LINEST('Compressor & IHX'!G128:G132,B4:C8,1,0) -> 0.0001004735009 | D15: -0.2640302854 | E15: 31.36028244
A17: Compressor Heat Rejection Capacity Characteristic Equation Coefficients | B17: SST | C17: A2 | D17: A1 | E17: A0
A18: SST | B18: =B11 -> -10 | C18: =LINEST('Compressor & IHX'!C142:C146,B4:C8,1,0) -> 0.001907940272 | D18: -0.1946442861 | E18: 17.09824842
B19: =B12 -> -5 | C19: =LINEST('Compressor & IHX'!D142:D146,B4:C8,1,0) -> 0.002084110381 | D19: -0.2287648055 | E19: 20.2250893
B20: 0 | C20: =LINEST('Compressor & IHX'!E142:E146,B4:C8,1,0) -> 0.002260280491 | D20: -0.2658314415 | E20: 23.76497972
B21: 5 | C21: =LINEST('Compressor & IHX'!F142:F146,B4:C8,1,0) -> 0.002436450601 | D21: -0.3058441942 | E21: 27.74406352
B22: 13 | C22: =LINEST('Compressor & IHX'!G142:G146,B4:C8,1,0) -> 0.002718322776 | D22: -0.375992521 | E22: 35.08937484
A24: Throttling Valve Sat. Suct. Temp. Setting [oC] | B24: 10
A26: Condenser
A27: SW Chosen Cooling fluid Inlet Temperature [oC] | B27: =Condenser!C1 -> 35
A29: Input Table | B29: SDT | C29: dt | D29: Qo
B30: =B27 -> 35 | C30: =B30-$B$27 -> 0 | D30: 0
B31: =Condenser!B5 -> 42 | C31: =B31-$B$27 -> 7 | D31: =Condenser!C5 -> 8.6548
B32: =Condenser!B6 -> 46 | C32: 11 | D32: =Condenser!C6 -> 13.6004
B33: =Condenser!B7 -> 55 | C33: 20 | D33: =Condenser!C7 -> 24.728
A35: Condenser Characteristic Equation | B35: k | C35: q
B36: =LINEST('Calculations CndU-Evps'!D30:D33,C30:C33,0,1) -> 1.2364 | C36: 0
B37: 0
B38: 1 | C38: 0
C39: 3
B40: 871.3504272 | C40: 0
A42: SDT_max - CFIT [K] | B42: =B33-B30 -> 20 | D42: =Condenser!B11 -> 0 | E42: =B33-B30 -> 20
A44: Characteristic Calculated Data | B44: SDT | C44: Qo
B45: =Condenser!$B$10 -> 35 | C45: 0
B46: =B45+B42 -> 55 | C46: =B36*(B46-B45) -> 24.728
A48: Axes crossing | B48: 20 | E48: =B48 -> 20
A50: Considered Cooling Fluid Inlet Temperature [oC] | B50: =Condenser!B10 -> 35
A52: Condensing Unit | B52: SST | C52: SST^2 | D52: SDT_eqp | E52: Qo | F52: Qc
A53: Compressor-Condenser Equilibrium Points | B53: =B18 -> -10 | C53: =B53^2 -> 100 | D53: =tbalancep($B$50,E11,D11,C11,$C$36,$B$36,"Cnd") -> 42.41210938 | E53: =E11+D11*D53+C11*D53^2 -> 9.162242653 | F53: =E18+D18*D53+C18*D53^2 -> 12.27495187
B54: =B19 -> -5 | C54: =B54^2 -> 25 | D54: =tbalancep($B$50,E12,D12,C12,$C$36,$B$36,"Cnd") -> 43.76953125 | E54: =E12+D12*D54+C12*D54^2 -> 10.84228934 | F54: =E19+D19*D54+C19*D54^2 -> 14.20484103
B55: =B20 -> 0 | C55: 0 | D55: =tbalancep($B$50,E13,D13,C13,$C$36,$B$36,"Cnd") -> 45.2734375 | E55: =E13+D13*D55+C13*D55^2 -> 12.71009079 | F55: =E20+D20*D55+C20*D55^2 -> 16.36273765
B56: =B21 -> 5 | C56: 25 | D56: =tbalancep($B$50,E14,D14,C14,$C$36,$B$36,"Cnd") -> 46.93359375 | E56: =E14+D14*D56+C14*D56^2 -> 14.76445851 | F56: =E21+D21*D56+C21*D56^2 -> 18.7566177
B57: =B22 -> 13 | C57: 169 | D57: =tbalancep($B$50,E15,D15,C15,$C$36,$B$36,"Cnd") -> 49.90234375 | E57: =E15+D15*D57+C15*D57^2 -> 18.4347559 | F57: =E22+D22*D57+C22*D57^2 -> 23.09575356
B60: A2 | C60: A1 | D60: A0 | F60: =IF(B57>=$B$24,F70,"") -> 20
A61: Condensing Unit Cooling Capacity Characteristic Equation Coefficients | B61: =LINEST('Calculations CndU-Evps'!E53:E57,'Calculations CndU-Evps'!B53:C57,1,0) -> 0.003717193853 | C61: 0.3920363607 | D61: 12.71038866
A62: Condensing Unit Heat Rejection Capacity Characteristic Equation Coefficients | B62: =LINEST('Calculations CndU-Evps'!F53:F57,'Calculations CndU-Evps'!B53:C57,1,0) -> 0.004758674821 | C62: 0.4560274161 | D62: 16.36176046
B64: SST | C64: Qo | D64: Qc | F64: SST | G64: Qo | H64: Qc
B65: =B53 -> -10 | C65: =IF(B65<=$B$24,$D$61+$C$61*B65+$B$61*B65^2,$D$61+$C$61*$B$24+$B$61*$B$24^2) -> 9.161744434 | D65: =IF(B65<=$B$24,$D$62+$C$62*B65+$B$62*B65^2,$D$62+$C$62*$B$24+$B$62*$B$24^2) -> 12.27735378 | F65: =IF(B53<=$B$24,B53,$B$24) -> -10 | G65: =IF(F65<=$B$24,ROUND($D$61+$C$61*F65+$B$61*F65^2,1),ROUND($D$61+$C$61*$B$24+$B$61*$B$24^2,1)) -> 9.2 | H65: =IF(F65<=$B$24,ROUND($D$62+$C$62*F65+$B$62*F65^2,1),ROUND($D$62+$C$62*$B$24+$B$62*$B$24^2,1)) -> 12.3
B66: =B54 -> -5 | C66: =IF(B66<=$B$24,$D$61+$C$61*B66+$B$61*B66^2,$D$61+$C$61*$B$24+$B$61*$B$24^2) -> 10.8431367 | D66: =IF(B66<=$B$24,$D$62+$C$62*B66+$B$62*B66^2,$D$62+$C$62*$B$24+$B$62*$B$24^2) -> 14.20059025 | F66: =IF(B54<=$B$24,B54,$B$24) -> -5 | G66: 10.8 | H66: 14.2
B67: 0 | C67: 12.71038866 | D67: 16.36176046 | F67: 0 | G67: 12.7 | H67: 16.4
B68: 5 | C68: 14.76350031 | D68: 18.76086441 | F68: 5 | G68: 14.8 | H68: 18.8
B69: 13 | C69: 17.00247165 | D69: 21.3979021 | F69: 10 | G69: =IF(F69<=$B$24,ROUND($D$61+$C$61*F69+$B$61*F69^2,1),ROUND($D$61+$C$61*$B$24+$B$61*$B$24^2,1)) -> 17 | H69: =IF(F69<=$B$24,ROUND($D$62+$C$62*F69+$B$62*F69^2,1),ROUND($D$62+$C$62*$B$24+$B$62*$B$24^2,1)) -> 21.4
F70: =IF(B57>=$B$24,B48,"") -> 20 | G70: =IF(B69>=$B$24,ROUND(C69,1),"") -> 17 | H70: =IF(B69>=$B$24,ROUND(D69,1),"") -> 21.4
G71: CndU_Qo_y-axes | H71: CndU_Qc_y-axes
A72: Evaporator
A73: SW Chosen Cooled Fluid Inlet Temperature [oC] | B73: =Evaporators!C1 -> 1 | F73: =Evaporators!E1 -> 7 | J73: =Evaporators!H1 -> 13
A74: ON / OFF | B74: =Evaporators!B17 -> ON | F74: =Evaporators!B20 -> ON | J74: =Evaporators!B23 -> ON
A75: Considered Cooled Fluid Inlet Temperature [oC] | B75: =Evaporators!B18 -> 1 | F75: =Evaporators!B21 -> 7 | J75: =Evaporators!B24 -> 13
A77: Input Table | B77: SST1 | C77: dt1 | D77: Qo1 | F77: SST2 | G77: dt2 | H77: Qo2 | J77: SST3 | K77: dt3 | L77: Qo3
B78: =B73 -> 1 | C78: =$B$73-B78 -> 0 | D78: 0 | F78: =F73 -> 7 | G78: =$F$73-F78 -> 0 | H78: 0 | J78: =Evaporators!H4 -> 13 | K78: =$J$73-J78 -> 0 | L78: =Evaporators!I4 -> 0
B79: =Evaporators!B5 -> -5 | C79: =$B$73-B79 -> 6 | D79: =Evaporators!C5 -> 1.6764 | F79: =Evaporators!E5 -> 3 | G79: =$F$73-F79 -> 4 | H79: =Evaporators!F5 -> 0.8308 | J79: =Evaporators!H5 -> 7 | K79: =$J$73-J79 -> 6 | L79: =Evaporators!I5 -> 0.92688
B80: =Evaporators!B6 -> -9 | C80: =$B$73-B80 -> 10 | D80: =Evaporators!C6 -> 2.794 | F80: =Evaporators!E6 -> 0 | G80: =$F$73-F80 -> 7 | H80: =Evaporators!F6 -> 1.4539 | J80: =Evaporators!H6 -> 3 | K80: 10 | L80: =Evaporators!I6 -> 1.5448
B81: =Evaporators!B7 -> -15 | C81: =$B$73-B81 -> 16 | D81: =Evaporators!C7 -> 4.4704 | F81: =Evaporators!E7 -> -3 | G81: =$F$73-F81 -> 10 | H81: =Evaporators!F7 -> 2.077 | J81: =Evaporators!H7 -> 0 | K81: 13 | L81: =Evaporators!I7 -> 2.00824
A83: Evaporator Characteristic Equation | B83: k | C83: q | F83: k | G83: q | J83: k | K83: q
B84: =LINEST('Calculations CndU-Evps'!D78:D81,C78:C81,0,1) -> 0.2794 | C84: 0 | F84: =LINEST('Calculations CndU-Evps'!H78:H81,G78:G81,0,1) -> 0.2077 | G84: 0 | J84: =LINEST('Calculations CndU-Evps'!L78:L81,K78:K81,0,1) -> 0.15448 | K84: 0
B85: 1.294990434e-17 | F85: 0 | J85: 1.513296904e-17
B86: 1 | C86: 2.563950249e-16 | F86: 1 | G86: 0 | J86: 1 | K86: 2.642859423e-16
B87: 4.654999975e+32 | C87: 3 | G87: 3 | J87: 1.04206842e+32 | K87: 3
B88: 30.60122912 | C88: 1.972152263e-31 | F88: 7.11798285 | G88: 0 | J88: 7.278541472 | K88: 2.095411779e-31
A90: Characteristic Calculated Data | B90: SST | C90: Qo | F90: SST | G90: Qo | J90: SST | K90: Qo
B91: =IF(B74="ON",Evaporators!$B$18,"") -> 1 | C91: =IF(B74="ON",0,"") -> 0 | F91: =IF(F74="ON",Evaporators!B21,"") -> 7 | G91: =IF(F74="ON",0,"") -> 0 | J91: =IF(J74="ON",Evaporators!B24,"") -> 13 | K91: =IF(J74="ON",0,"") -> 0
B92: -10 | C92: =IF(B74="ON",B84*(B91-B92),"") -> 3.0734 | F92: -10 | G92: =IF(F74="ON",F84*(F91-F92),"") -> 3.5309 | J92: -10 | K92: =IF(J74="ON",J84*(J91-J92),"") -> 3.55304
A95: Condensing Unit - 2 Evaporators Equilibrium Point | B95: SET=SST_calc | C95: Qc | D95: Qo | E95: SDT_calc
B96: =ROUND(tbalancep3(B24,Evaporators!B17,B75,Evaporators!B20,'Calculations CndU-Evps'!F75,Evaporators!B23,'Calculations CndU-Evps'!J75,D61,C61,B61,C84,B84,G84,F84,K84,J84),1) -> -9 | C96: =IF(B96<B24,ROUND(D62+C62*B96+B62*B96^2,1),ROUND(D62+C62*B24+B62*B24^2,1)) -> 12.6 | D96: =IF(B96<B24,ROUND(D61+C61*B96+B61*B96^2,1),ROUND(D61+C61*B24+B61*B24^2,1)) -> 9.5 | E96: =ROUND(B50+C96/B36,1) -> 45.2
A97: Qo1 | D97: =IF(D96-IF(B74="ON",B84*(B91-B96),0)<0.01,"",IF(B74="ON",B84*(B91-B96),"")) -> 2.794
A98: Qo2 | D98: =IF(D96-IF(F74="ON",F84*(F91-B96),0)<0.01,"",IF(F74="ON",F84*(F91-B96),"")) -> 3.3232
A99: Qo3 | D99: =IF(D96-IF(J74="ON",J84*(J91-B96),0)<0.01,"",IF(J74="ON",J84*(J91-B96),"")) -> 3.39856
A101: Graph | B101: 3 Evaporators
A102: Graph Lines | B102: t | C102: Q
A105: SET=SST_calc_vertical | B105: =B96 -> -9 | C105: 0
B106: =B105 -> -9 | C106: =D96 -> 9.5
A108: Qo_horizontal | B108: =B96 -> -9 | C108: =D96 -> 9.5
B109: =E48 -> 20 | C109: =C108 -> 9.5
A111: Qo_horizontal_1 | B111: =B96 -> -9 | C111: =D97 -> 2.794
B112: =E48 -> 20 | C112: =C111 -> 2.794
A114: Qo_horizontal_2 | B114: =B111 -> -9 | C114: =D98 -> 3.3232
B115: =B112 -> 20 | C115: =C114 -> 3.3232
A117: Qo_horizontal_3 | B117: =B114 -> -9 | C117: =D99 -> 3.39856
B118: =B115 -> 20 | C118: =C117 -> 3.39856
A120: Qc_vertical_1 | B120: =B96 -> -9 | C120: =D96 -> 9.5
B121: =B120 -> -9 | C121: =C96 -> 12.6
A123: Qc_horizontal_1 | B123: =B96 -> -9 | C123: =C96 -> 12.6 | E123: =IF(B96<=$B$24,C96,"") -> 12.6
B124: =E48 -> 20 | C124: =C123 -> 12.6 | E124: =IF(B96<=$B$24,C123,"") -> 12.6
A126: Qc_horizontal_2 | B126: =E48 -> 20 | C126: =C96 -> 12.6
B127: =E96 -> 45.2 | C127: =C96 -> 12.6
A129: Qc_vertical_2 | B129: =E96 -> 45.2 | C129: 0
B130: =B129 -> 45.2 | C130: =C96 -> 12.6
A132: Additional Info | B132: ='Compressor & IHX'!B2 -> R454C
B133: ='Compressor & IHX'!A3&" "&'Compressor & IHX'!B3 -> Drive 380-420 V / 3~ / 50 Hz
B134: ="Compressor Input Power: "&ROUND(C96-D96,1)&" kW" -> Compressor Input Power: 3,1 kW | F134: ="Compressor Input Power: "&ROUND(C96-D96,1)&" kW" -> Compressor Input Power: 3,1 kW
B135: ='Compressor & IHX'!A36&": "&'Compressor & IHX'!B36 -> Chosen Suction Temperature [°C]: 9
B136: ='Compressor & IHX'!A5&": "&'Compressor & IHX'!B5 -> Table Subcooling [K]: 0

Sheet EVPS

Sheet CND-CMP

Sheet Calculations EvpU-Cnd
A1: Evap Unit
A2: Compressor
A3: SST | B3: ='Compressor & IHX'!C127 -> -10 | C3: ='Compressor & IHX'!D127 -> -5 | D3: ='Compressor & IHX'!E127 -> 0 | E3: ='Compressor & IHX'!F127 -> 5 | F3: ='Compressor & IHX'!G127 -> 13
A4: SST^2 | B4: =B3^2 -> 100 | C4: =C3^2 -> 25 | D4: 0 | E4: 25 | F4: 169
A10: Compressor Cooling Capacity Characteristic Equation Coefficients | B10: SDT | C10: A2 | D10: A1 | E10: A0
A11: SDT | B11: ='Compressor & IHX'!B128 -> 25 | C11: =LINEST('Compressor & IHX'!C128:G128,$B$3:$F$4,1,0) -> 0.007462899525 | D11: 0.569233734 | E11: 16.15700672
B12: ='Compressor & IHX'!B129 -> 32 | C12: =LINEST('Compressor & IHX'!C129:G129,$B$3:$F$4,1,0) -> 0.007050443199 | D12: 0.5277315292 | E12: 14.95553743
B13: ='Compressor & IHX'!B130 -> 39 | C13: =LINEST('Compressor & IHX'!C130:G130,$B$3:$F$4,1,0) -> 0.006637986873 | D13: 0.4863545356 | E13: 13.76630906
B14: ='Compressor & IHX'!B131 -> 46 | C14: =LINEST('Compressor & IHX'!C131:G131,B3:F4,1,0) -> 0.006225530547 | D14: 0.4451027535 | E14: 12.58580603
B15: ='Compressor & IHX'!B132 -> 55 | C15: =LINEST('Compressor & IHX'!C132:G132,B3:F4,1,0) -> 0.005695229556 | D15: 0.3922487317 | E15: 11.07517959
A17: Compressor Heat Rejection Capacity Characteristic Equation Coefficients | B17: SDT | C17: A2 | D17: A1 | E17: A0
A18: SDT | B18: ='Compressor & IHX'!B142 -> 25 | C18: =LINEST('Compressor & IHX'!C142:G142,$B$3:$F$4,1,0) -> 0.007462899525 | D18: 0.5841626632 | E18: 18.51992772
B19: ='Compressor & IHX'!B143 -> 32 | C19: =LINEST('Compressor & IHX'!C143:G143,$B$3:$F$4,1,0) -> 0.007050443199 | D19: 0.5442654659 | E19: 17.58472306
B20: ='Compressor & IHX'!B144 -> 39 | C20: =LINEST('Compressor & IHX'!C144:G144,$B$3:$F$4,1,0) -> 0.006637986873 | D20: 0.5078212027 | E20: 16.8339782
B21: ='Compressor & IHX'!B145 -> 46 | C21: =LINEST('Compressor & IHX'!C145:G145,B3:F4,1,0) -> 0.006225530547 | D21: 0.4748298737 | E21: 16.30007394
B22: ='Compressor & IHX'!B146 -> 55 | C22: =LINEST('Compressor & IHX'!C146:G146,B3:F4,1,0) -> 0.005695229556 | D22: 0.4374861499 | E22: 15.9843599
A26: Evaporator
A27: SW Chosen Cooled Fluid Inlet Temperature [oC] | B27: =Evaporators!C1 -> 1
A29: Input Table | B29: SST | C29: dt | D29: Qo
B30: =B27 -> 1 | C30: =$B$27-B30 -> 0 | D30: 0
B31: =Evaporators!B5 -> -5 | C31: =$B$27-B31 -> 6 | D31: =Evaporators!C5 -> 1.6764
B32: =Evaporators!B6 -> -9 | C32: =$B$27-B32 -> 10 | D32: =Evaporators!C6 -> 2.794
B33: =Evaporators!B7 -> -15 | C33: =$B$27-B33 -> 16 | D33: =Evaporators!C7 -> 4.4704
A35: Evaporator Characteristic Equation | B35: k | C35: q
B36: =LINEST('Calculations EvpU-Cnd'!D30:D33,C30:C33,0,1) -> 0.2794 | C36: 0
B37: 1.294990434e-17
B38: 1 | C38: 2.563950249e-16
B39: 4.654999975e+32 | C39: 3
B40: 30.60122912 | C40: 1.972152263e-31
A42: EFIT - SET_min [K] | B42: =B30-B33 -> 16 | D42: =Evaporators!#REF! ->  | E42: =B30-B33 -> 16
A44: Characteristic Calculated Data | B44: to | C44: Qo
B45: =Evaporators!$B$18 -> 1 | C45: 0
B46: =B45-B42 -> -15 | C46: =B36*(B45-B46) -> 4.4704
A48: Axes crossing | B48: 20
A50: Considered Cooled Fluid Fnlet Temperature [oC] | B50: =Evaporators!B18 -> 1
A52: Evaporator Unit | B52: SDT | C52: SDT^2 | D52: SST_eqp | E52: Qo | F52: Qc
A53: Compressor-Evaporator Equilibrium Points | B53: =B18 -> 25 | C53: =B53^2 -> 625 | D53: =tbalancep($B$50,E11,D11,C11,$C$36,$B$36,"Evp") -> -23.609375 | E53: =E11+D11*D53+C11*D53^2 -> 6.877593545 | F53: =E18+D18*D53+C18*D53^2 -> 8.888051847
B54: =B19 -> 32 | C54: =B54^2 -> 1024 | D54: =tbalancep($B$50,E12,D12,C12,$C$36,$B$36,"Evp") -> -22.671875 | E54: =E12+D12*D54+C12*D54^2 -> 6.614900085 | F54: =E19+D19*D54+C19*D54^2 -> 8.86923037
B55: =B20 -> 39 | C55: 1521 | D55: =tbalancep($B$50,E13,D13,C13,$C$36,$B$36,"Evp") -> -21.6953125 | E55: =E13+D13*D55+C13*D55^2 -> 6.339106791 | F55: =E20+D20*D55+C20*D55^2 -> 8.941049884
B56: =B21 -> 46 | C56: 2116 | D56: =tbalancep($B$50,E14,D14,C14,$C$36,$B$36,"Evp") -> -20.640625 | E56: =E14+D14*D56+C14*D56^2 -> 6.050903407 | F56: =E21+D21*D56+C21*D56^2 -> 9.151584978
B57: =B22 -> 55 | C57: 3025 | D57: =tbalancep($B$50,E15,D15,C15,$C$36,$B$36,"Evp") -> -19.1953125 | E57: =E15+D15*D57+C15*D57^2 -> 5.644307018 | F57: =E22+D22*D57+C22*D57^2 -> 9.685140945
B60: A2 | C60: A1 | D60: A0
A61: Evaporator Unit Cooling Capacity Characteristic Equation Coefficients | B61: =LINEST('Calculations EvpU-Cnd'!E53:E57,'Calculations EvpU-Cnd'!B53:C57,1,0) -> -0.0001725350413 | C61: -0.02722105185 | D61: 7.664659358
A62: Evaporator Unit Heat Rejection Capacity Characteristic Equation Coefficients | B62: =LINEST('Calculations EvpU-Cnd'!F53:F57,'Calculations EvpU-Cnd'!B53:C57,1,0) -> 0.001440731313 | C62: -0.08932336345 | D62: 10.23156854
A71: Condenser
A72: SW Chosen Cooling Fluid Inlet Temperature [oC] | B72: =Condenser!C1 -> 35
A74: Input Table | B74: SDT | C74: dt | D74: Qo
B75: =B72 -> 35 | C75: =B75-$B$72 -> 0 | D75: 0
B76: =Condenser!B5 -> 42 | C76: =B76-$B$72 -> 7 | D76: =Condenser!C5 -> 8.6548
B77: =Condenser!B6 -> 46 | C77: =B77-$B$72 -> 11 | D77: =Condenser!C6 -> 13.6004
B78: =Condenser!B7 -> 55 | C78: =B78-$B$72 -> 20 | D78: =Condenser!C7 -> 24.728
A80: Condenser Characteristic Equation | B80: k | C80: q
B81: =LINEST('Calculations EvpU-Cnd'!D75:D78,C75:C78,0,1) -> 1.2364 | C81: 0
B82: 0
B83: 1 | C83: 0
C84: 3
B85: 871.3504272 | C85: 0
A87: Characteristic Calculated Data | B87: SDT | C87: Qc
B88: =Condenser!$B$10 -> 35 | C88: 0
B89: =B88-(B75-B78) -> 55 | C89: =B81*(B89-B88) -> 24.728
A91: Evaporating Unit - Condenser Equilibrium Point | B91: SDT_calc | C91: Qc | D91: Qo | E91: SET=SST_calc
B92: =ROUND(tbalancep(B88,D62,C62,B62,C81,B81,"Cnd"),1) -> 42.3 | C92: =ROUND(D62+C62*B92+B62*B92^2,1) -> 9 | D92: =ROUND(D61+C61*B92+B61*B92^2,1) -> 6.2 | E92: =ROUND(B50-D92/B36,1) -> -21.2
A99: Graph
A100: Graph Lines | B100: t | C100: Q
A103: SDT_vertical | B103: =B92 -> 42.3 | C103: 0
B104: =B103 -> 42.3 | C104: =C92 -> 9
A106: Qc_horizontal | B106: =B92 -> 42.3 | C106: =C92 -> 9
B107: =B48 -> 20 | C107: =C106 -> 9
A115: Qo_horizontal_1 | B115: =B92 -> 42.3 | C115: =D92 -> 6.2
B116: =B48 -> 20 | C116: =C115 -> 6.2
A118: Qo_horizontal_2 | B118: =B48 -> 20 | C118: =D92 -> 6.2
B119: =E92 -> -21.2 | C119: =C118 -> 6.2
A121: SET=SST_calc_vertical | B121: =E92 -> -21.2 | C121: =D92 -> 6.2
B122: =B121 -> -21.2 | C122: 0
A127: Additional Info | B127: ='Compressor & IHX'!B2 -> R454C
B128: ='Compressor & IHX'!A3&": "&'Compressor & IHX'!B3 -> Drive: 380-420 V / 3~ / 50 Hz
B129: ="Compressor Input Power: "&ROUND(C92-D92,1)&" kW" -> Compressor Input Power: 2,8 kW
B130: ='Compressor & IHX'!A36&": "&'Compressor & IHX'!B36 -> Chosen Suction Temperature [°C]: 9
B131: ='Compressor & IHX'!A5&": "&'Compressor & IHX'!B5 -> Table Subcooling [K]: 0
